Cogmind - Beta 11.1 @@@ ROGUE MODE // 2022.12.24 @ 12:50:55 Player: sasha Result: Destroyed by as-43670 with Assembled Maul Performance ------------- Evolutions (1) 500 Regions Visited (4) 800 Robots Destroyed (55) 275 Value Destroyed (1488) 1488 Prototype IDs (0) 0 Alien Tech Used (0) 0 Bonus (215) 215 TOTAL SCORE: 3278 Bonus ------- High Alert Combat Kills 81 Follower Combat Kills 134 Cogmind --------- Core Integrity 0/400 Matter 295/300 Energy 262/265 System Corruption 0% Temperature Cool (0) Movement Treading (160) Location -9/Mines Parts ------- > --- POWER (1) -------- Improved Ion Engine > --- PROPULSION (3) --- Improved Treads Improved Treads Improved Treads > --- UTILITY (3) ------ Large Storage Unit Improved Targeting Computer Reflective Plating > --- WEAPON (2) ------- Assault Cannon > --- INVENTORY (15) --- Light Nuclear Core Improved Treads Improved Heat Sink High-capacity Matter Pod (200) High-capacity Matter Pod (200) Improved Targeting Computer Melee Analysis Suite Reflective Plating Reflective Plating Reflective Plating Hardlight Generator High-powered Tractor Beam Assault Cannon Assault Cannon Mining Laser Peak State ------------ > --- POWER ------------ Improved Ion Engine > --- PROPULSION ------- Improved Treads Improved Treads Improved Treads > --- UTILITY ---------- Large Storage Unit Visual Processing Unit Reflective Plating > --- WEAPON ----------- Assault Cannon Assault Cannon > --- INVENTORY -------- Light Nuclear Core Improved Heat Sink High-capacity Matter Pod High-capacity Matter Pod Structural Scanner Melee Analysis Suite Melee Analysis Suite Melee Analysis Suite Reflective Plating Reflective Plating Reflective Plating Hardlight Generator High-powered Tractor Beam Improved Light Cannon Mining Laser [Rating: 23] Favorites ----------- Power Improved Ion Engine Engine Improved Ion Engine Power Core Light Nuclear Core Propulsion Improved Treads Treads Improved Treads Leg Aluminum Leg Utility Large Storage Unit Device Structural Scanner Storage Large Storage Unit Processor Improved Targeting Computer Hackware Hacking Suite Protection Propulsion Shielding Weapon Light Assault Rifle Energy Gun EM Pulse Gun Ballistic Gun Light Assault Rifle Ballistic Cannon Assault Cannon Build | -11 -10 -10 -9 -9 ------- Run | Scr Mat Min Mat Min Slots Evolved 2 | . . . 2 . Power . | . . . . . Propulsion 1 | . . . 1 . Utility 1 | . . . 1 . Weapon . | . . . . . Parts Attached 48 | 5 14 2 27 . Power 5 | 1 2 1 1 . Engine 4 | 1 1 1 1 . Core 1 | . 1 . . . Reactor . | . . . . . Propulsion 22 | 2 6 . 14 . Treads 11 | . 2 . 9 . Leg 11 | 2 4 . 5 . Wheel . | . . . . . Hover . | . . . . . Flight . | . . . . . Utility 11 | 1 2 1 7 . Device 1 | . . . 1 . Storage 2 | 1 1 . . . Processor 3 | . . . 3 . Hackware 1 | . . . 1 . Protection 4 | . 1 1 2 . Artifact . | . . . . . Weapon 10 | 1 4 . 5 . Energy Gun 1 | . 1 . . . Energy Cannon . | . . . . . Ballistic Gun 7 | 1 3 . 3 . Ballistic Cannon 2 | . . . 2 . Launcher . | . . . . . Special Weapon . | . . . . . Impact Weapon . | . . . . . Slashing Weapon . | . . . . . Piercing Weapon . | . . . . . Special Melee Weapon . | . . . . . Unidentified Prototypes . | . . . . . Parts Lost 8 | . . 2 5 1 Power 2 | . . 1 1 . Propulsion 3 | . . . 3 . Utility 1 | . . 1 . . Weapon 2 | . . . 1 1 Highest Loss Streak 5 | . . 1 5 1 To Critical Strikes . | . . . . . Average Slot Usage (%) 97 | . 96 95 97 98 Engine 8 | . 5 4 10 11 Core 2 | . 8 4 . . Treads 20 | . 6 28 23 33 Leg 10 | . 21 . 8 . Storage 12 | . 14 14 11 11 Processor 5 | . . . 8 11 Hackware 2 | . . . 3 . Protection 10 | . 13 14 8 11 Ballistic Gun 16 | . 23 28 10 . Ballistic Cannon 6 | . . . 10 20 Naked Turns . | . . . . . Heaviest Build 41 | 10 28 28 41 41 Greatest Support 69 | 20 40 40 69 69 Greatest Overweight (x) 2 | 2 1 . 1 . Average Overweight (x) . | . . . . . Largest Inventory Capacity 15 | 8 15 15 15 15 Average Capacity 13 | 7 9 15 15 15 Most Carried 15 | 6 8 12 15 15 Average Carried 11 | 5 7 9 14 15 Final Capacity 15 | 8 15 15 15 15 Final Carried 15 | 6 6 12 15 15 Class Distribution -------------------- 72% | Mutant 27% | Scavenger-Mutant Dominant Class ---------------- Mutant | -10/Materials Mutant | -10/Mines Mutant | -9/Materials Mutant | -9/Mines Resources | -11 -10 -10 -9 -9 ----------- Run | Scr Mat Min Mat Min Matter Collected 1885 | 221 250 297 1117 . Remotely . | . . . . . Salvage Created 1680 | . 376 . 1304 . Parts 123 | . 35 . 88 . Haulers Intercepted 5 | . . . 5 . Recyclers Shooed . | . . . . . Parts Field Recycled . | . . . . . Retrieved Matter . | . . . . . Parts Self-Destructed . | . . . . . Prevented . | . . . . . Kills | -11 -10 -10 -9 -9 ------- Run | Scr Mat Min Mat Min Combat Hostiles Destroyed 41 | . 12 . 29 . Guns 25 | . 12 . 13 . Cannons 16 | . . . 16 . Classes Destroyed 8 | . 4 . 4 . Builder 1 | . . . 1 . Hauler 5 | . . . 5 . Operator 1 | . 1 . . . Watcher 7 | . 2 . 5 . Swarmer 9 | . 6 . 3 . Grunt 24 | . 6 . 18 . Duelist 2 | . . . 2 . Sentry 6 | . . . 6 . Best Kill Streak 4 | . 4 . 4 . Combat Bots Only 4 | . 3 . 4 . Max Kills in Single Turn 1 | . 1 . 1 . Gunslinging . | . . . . . Exploded . | . . . . . Melee . | . . . . . Uniques/NPCs Destroyed . | . . . . . Combat | -11 -10 -10 -9 -9 -------- Run | Scr Mat Min Mat Min Damage Taken 2673 | . 408 99 2104 62 Core 534 | . 102 17 395 20 Absorbed by Shields . | . . . . . Redirected to Shielding 75 | . 33 19 23 . Regen/Repaired (Parts) 340 | . . . 340 . Core Remaining (%) 76 | 100 . 52 . . Volleys Fired 203 | . 49 3 150 1 Largest 2 | . 2 2 2 1 Hottest 88 | . 60 40 88 44 Shots Fired 372 | . 82 6 283 1 Gun 265 | . 82 6 177 . Cannon 107 | . . . 106 1 Launcher . | . . . . . Special . | . . . . . Kinetic 357 | . 67 6 283 1 Thermal . | . . . . . Explosive . | . . . . . Electromagnetic 15 | . 15 . . . Robot Hit Streak 20 | . 8 2 20 . Robot Miss Streak 4 | . 4 2 4 1 Penetration Max . | . . . . . Secondary Targets 5 | . 4 . 1 . Max Gunslinging Chain 1 | . 1 . 1 . Shots Hit Robots 250 | . 52 3 195 . Core Hits 95 | . 26 1 68 . Critical Kills . | . . . . . Critical Parts Destroyed 1 | . 1 . . . Critical Strikes 5 | . 1 . 4 . Destroy 1 | . 1 . . . Blast 4 | . . . 4 . Melee Attacks . | . . . . . Impact . | . . . . . Slashing . | . . . . . Piercing . | . . . . . Sneak Attacks . | . . . . . Combat Hostiles . | . . . . . Follow-up Attacks . | . . . . . Damage Inflicted 3355 | . 583 24 2748 . Guns 1675 | . 583 24 1068 . Cannons 1675 | . . . 1675 . Explosions . | . . . . . Melee . | . . . . . Ramming 5 | . . . 5 . Kinetic 3253 | . 486 24 2743 . Thermal . | . . . . . Explosive . | . . . . . Electromagnetic 97 | . 97 . . . Impact . | . . . . . Slashing . | . . . . . Piercing . | . . . . . Highest Corruption . | . . . . . Average Corruption . | . . . . . Corruption Purged . | . . . . . Corruption Blocked . | . . . . . Overload Shots . | . . . . . Overflow Damage 42 | . . . 42 . Projectiles 42 | . . . 42 . Explosions . | . . . . . Melee . | . . . . . Knockbacks 11 | . . . 11 . Impact . | . . . . . Kinetic 11 | . . . 11 . Secondary . | . . . . . Self-Inflicted Damage . | . . . . . Shots . | . . . . . Rammed 1 | . . . 1 . Targets Rammed 1 | . . . 1 . Kicked . | . . . . . Crushed . | . . . . . Highest Temperature 373 | . 48 4 373 . Average Temperature 70 | . 17 3 81 . Received Heat Transfer 1068 | . 162 45 861 . Effects 1 | . . . 1 . Damage (minor) 1 | . . . 1 . Siege Activations . | . . . . . Robots Corrupted . | . . . . . Combat Hostiles . | . . . . . Parts Fried 1 | . 1 . . . Impact Corruptions 1 | . . . 1 . Robots Melted . | . . . . . Combat Hostiles . | . . . . . Parts Melted . | . . . . . Heat Transferred . | . . . . . Parts Sabotaged . | . . . . . Parts Stolen . | . . . . . Parts Stripped . | . . . . . Power Chain Reactions . | . . . . . Missiles Intercepted . | . . . . . Alert | -11 -10 -10 -9 -9 ------- Run | Scr Mat Min Mat Min Peak Influence 586 | . 242 169 586 228 Initial 228 | . . 26 . 228 Average 141 | . 84 76 182 226 Maximum Alert Level 2 | . 1 . 2 1 Low Security (%) 70 | 100 90 100 57 . Level 1 22 | . 9 . 30 100 Level 2 6 | . . . 11 . Level 3 . | . . . . . Level 4 . | . . . . . Level 5 . | . . . . . High Security . | . . . . . Max Security . | . . . . . Squads Dispatched 6 | . 2 . 4 . Investigation 4 | . 2 . 2 . Extermination . | . . . . . Reinforcement 1 | . . . 1 . Assault 1 | . . . 1 . Garrison . | . . . . . Intercept . | . . . . . Searches Triggered . | . . . . . Construction Impeded . | . . . . . Haulers Reinforced . | . . . . . Active Scanning Responses . | . . . . . Cargo Convoy Interrupts . | . . . . . Stealth | -11 -10 -10 -9 -9 --------- Run | Scr Mat Min Mat Min Distress Signals 5 | . 2 . 3 . Communications Jammed . | . . . . . Distress Signals . | . . . . . Times Spotted 80 | . 19 7 53 1 Peak Tracking Total 5 | . 5 3 5 . Tactical Retreats 7 | . 2 1 4 . Traps | -11 -10 -10 -9 -9 ------- Run | Scr Mat Min Mat Min Traps Triggered 3 | . 2 . 1 . Indirectly . | . . . . . Trap Hack Attempts . | . . . . . Triggered . | . . . . . Disarmed . | . . . . . Reprogrammed . | . . . . . Reused . | . . . . . Traps Extracted . | . . . . . Installed . | . . . . . Triggered . | . . . . . Machines | -11 -10 -10 -9 -9 ---------- Run | Scr Mat Min Mat Min Machines Disabled 1 | . . . 1 . Max in Single Turn 1 | . . . 1 . Machines Sabotaged . | . . . . . Garrisons Compromised . | . . . . . Overloaded Fab Kills . | . . . . . Hacking | -11 -10 -10 -9 -9 --------- Run | Scr Mat Min Mat Min Machines Accessed 11 | . 4 . 7 . Terminals 6 | . 3 . 3 . Fabricators . | . . . . . Repair Stations 3 | . 1 . 2 . Recycling Units 2 | . . . 2 . Scanalyzers . | . . . . . Garrison Access . | . . . . . Total Hacks 28 | . 9 . 19 . Successful 16 | . 2 . 14 . Failed 12 | . 7 . 5 . Catastrophic 2 | . 2 . . . Database Lockouts . | . . . . . Manual 11 | . 4 . 7 . Terminals 10 | . 6 . 4 . Fabricators . | . . . . . Repair Stations 13 | . 3 . 10 . Recycling Units 5 | . . . 5 . Scanalyzers . | . . . . . Garrison Access . | . . . . . Terminal Hacks 3 | . 1 . 2 . Branch Access Points 2 | . 1 . 1 . Emergency Access Points 1 | . . . 1 . Fabricator Hacks . | . . . . . Repair Station Hacks 9 | . 1 . 8 . Scan Component 5 | . 1 . 4 . Repair 4 | . . . 4 . Recycling Unit Hacks . | . . . . . Scanalyzer . | . . . . . Garrison Access Hacks . | . . . . . Unauthorized Hacks 4 | . . . 4 . Terminals . | . . . . . Fabricators . | . . . . . Repair Stations . | . . . . . Recycling Units 4 | . . . 4 . Reject 2 | . . . 2 . Mask 2 | . . . 2 . Scanalyzers . | . . . . . Garrison Access . | . . . . . Data Cores Recovered 1 | . 1 . . . Used . | . . . . . Hacking Detections 8 | . 3 . 5 . Full Trace Events 3 | . 2 . 1 . Feedback Events . | . . . . . Feedback Blocked . | . . . . . Robot Schematics Acquired . | . . . . . Robots Built . | . . . . . Authchips . | . . . . . Time . | . . . . . Total Robot Build Rating . | . . . . . Part Schematics Acquired . | . . . . . Parts Built . | . . . . . Authchips . | . . . . . Time . | . . . . . Total Part Build Rating . | . . . . . Parts Repaired 4 | . . . 4 . Time 118 | . . . 118 . Parts Recycled . | . . . . . Recycled Matter . | . . . . . Retrieved Matter . | . . . . . Retrieved Components . | . . . . . Parts Scanalyzed . | . . . . . Part Schematics Acquired . | . . . . . Parts Damaged . | . . . . . Bothacking | -11 -10 -10 -9 -9 ------------ Run | Scr Mat Min Mat Min Used RIF Installer . | . . . . . Robots Hacked . | . . . . . Non-combat . | . . . . . Combat . | . . . . . Robot Hacks Applied . | . . . . . Relay Couplers Released . | . . . . . Fabnet Peak Effective % . | . . . . . Robots Rewired . | . . . . . Allies Hacked . | . . . . . Hacks Repelled . | . . . . . Allies | -11 -10 -10 -9 -9 -------- Run | Scr Mat Min Mat Min Total Allies 4 | . . 4 . . Largest Group 3 | . . 3 1 . Highest-Rated Group 40 | . . 40 16 . Highest-Rated Ally 31 | . . 31 16 . Total Orders . | . . . . . Ally Attacks 31 | . . 27 4 . Total Damage 442 | . . 379 63 . Kills 6 | . . 6 . . Allies Corrupted . | . . . . . Allies Melted 1 | . . 1 . . Intel | -11 -10 -10 -9 -9 ------- Run | Scr Mat Min Mat Min Robot Analysis Total . | . . . . . Derelict Logs Recovered 1 | . . 1 . . Drone Launches . | . . . . . Drone Recoveries . | . . . . . Exploration | -11 -10 -10 -9 -9 ------------- Run | Scr Mat Min Mat Min Turns Passed 3831 | 72 970 540 2108 141 Spaces Moved 1711 | 51 451 284 837 88 Core 11 | 11 . . . . Treads 1100 | . 132 284 596 88 Legs 600 | 40 319 . 241 . Wheels . | . . . . . Hover . | . . . . . Flight . | . . . . . Fastest Speed 50 | 50 120 160 120 160 Average Speed 145 | 112 131 160 149 160 Slowest Speed 190 | 150 190 160 190 160 Overloaded Moves . | . . . . . Propulsion Burnouts . | . . . . . Robots Hopped . | . . . . . Cave-ins Triggered . | . . . . . Exploration Rate (%) 50 | 5 88 57 64 40 Regions Visited 4 Branch Regions 2 Pre-discovered Areas . | . . . . . Known Exits Taken 2 | . 1 . 1 . Unknown Exits Taken 2 | 1 . 1 . . Scrap Searched 3 | . . 2 . 1 Spaces Dug . | . . . . . Terrain Destroyed 12 | . . . 11 1 Melee . | . . . . . Projectile 12 | . . . 11 1 AOE . | . . . . . Terrain Rammed . | . . . . . Walls Destroyed . | . . . . . Machines Disabled . | . . . . . Actions | -11 -10 -10 -9 -9 --------- Run | Scr Mat Min Mat Min Total 2727 | 64 754 365 1455 89 Wait 680 | . 221 69 390 . Move 1707 | 50 450 283 836 88 Hop . | . . . . . Pick Up 50 | 9 8 8 25 . Fast Attach 16 | 2 4 . 10 . Attach 16 | 3 2 2 9 . Detach . | . . . . . Swap 16 | . 8 . 8 . Drop 38 | . 12 . 26 . Fire 203 | . 49 3 150 1 Melee . | . . . . . Ram . | . . . . . Kick . | . . . . . Crush 1 | . . . 1 . Escape Stasis . | . . . . . Rewire . | . . . . . Trap . | . . . . . Miscellaneous . | . . . . . Route ------- -11/Scrapyard -10/Materials (discovered 4 exits: *Mat x3 / *Min) -10/Mines -9/Materials (discovered 4 exits: [*Mat x2] / *Min x2) -9/Mines History --------- Turn | Location | Event 22 | -11/Scrapyard | Discovered new exit (range 16) 73 | -11/Scrapyard | Entered Materials 275 | -10/Materials | Discovered new exit (range 3) 308 | -10/Materials | Build established: Mutant 395 | -10/Materials | Discovered new exit (range 6) 692 | -10/Materials | Discovered new exit (range 11) 856 | -10/Materials | Discovered new exit (range 16) 887 | -10/Materials | Identified exit to Mines 1043 | -10/Materials | Entered Mines 1046 | -10/Mines | Received a Mining Laser from a helpful Derelict 1071 | -10/Mines | Met a Derelict bent on vengeance 1255 | -10/Mines | Discovered new exit (range 15) 1260 | -10/Mines | Learned Materials terminal intel 1338 | -10/Mines | Assisted by bots powering up and referring to "LRC-V3" 1583 | -10/Mines | Entered Materials 1583 | -9/Materials | Accompanied by 1 ally 1583 | -9/Materials | Evolved 2 slots: Propulsion x1, Utility x1 1584 | -9/Materials | Loaded intel: 12 terminal locations 1673 | -9/Materials | Identified exit to Mines 1890 | -9/Materials | Build established: Scavenger-Mutant 2046 | -9/Materials | Lost 5 parts (1p3n1w) 2148 | -9/Materials | Core integrity fell below 50% 2382 | -9/Materials | Discovered new exit (range 6) 2845 | -9/Materials | Repaired Imp. Treads 2866 | -9/Materials | Build established: Mutant 2878 | -9/Materials | Repaired Imp. Treads 2927 | -9/Materials | Repaired Reflective Plating 3068 | -9/Materials | Discovered new exit (range 8) 3426 | -9/Materials | Core integrity fell below 20% 3528 | -9/Materials | Repaired Imp. Treads 3583 | -9/Materials | First assault squad dispatched 3691 | -9/Materials | Entered Mines 3803 | -9/Mines | Assembled infested the area 3808 | -9/Mines | Assisted by a Guerilla fighting off Assembled 3832 | -9/Mines | Destroyed by as-43670 with Assembled Maul Last Messages --------------- LOCATION=MINES GOAL=ESCAPE 03701_ Searching scrap... 03701_ Found Shotgun. 03701_ Found Field Recycling Unit. 03701_ Found 21 Matter. 03777_ K-01 Serf collects debris. 03803_ ALERT: Infestation in the mines, dispatching Demolisher response squad. 03804_ K-01 Serf collects debris. 03808_ A derelict emerges from the shadows: "You need to get out of here! I've been tracking a group of Assembled to figure out where they're coming from, and they're closing on this area, come on!" 03810_ BH-D3N(h): "I'll hold them off! Go on ahead or try to find another way!" 03813_ Assault Cannon destroyed. 03813_ T-07 Excavator destroyed. 03815_ BH-D3N(h) destroyed. 03824_ R-06 Scavenger destroyed. 03825_ K-01 Serf collects debris. Map ----- +----------------------------------------------------+ | ?????????????????????????????????????????????????? | | ?????????????????????????????????????????????????? | | ?????????????????????????????????????????????????? | | ?????????????????????????????????????????????????? | | ?????????????????????????????????????????????????? | | ?????????????????????????????????????????????????? | | ?????????????????????????????????????????????????? | | ?????????????????????????????????????????????????? | | ?????????????????????????????????????????????????? | | ?????????????????????????????????????????????????? | | ?????????????????????????????????????????????????? | | ?????????????????????????????????????????????????? | | ?????????????????????????????????????????????????? | | ?????????????????????????????????????????????????? | | ?????????????????????????????????????????????????? | | ?????????????????????????????????????????????????? | | ?????????????????????????????????????????????????? | | ?????????????????????????????????????????????????? | | ?????????????????????????????????????????????????? | | ?????????????????????????????????????????????????? | | ?????????????????????????????????????????????????? | | ???????????????????????????????###??#????????????? | | ???????????????????????????#??? ?? #????????????? | | ?????????????##??????????? ##?# #?# ###??????????? | | ?????????????? ?????#####a;###=#? ???????????? | | ????????????# ? ????# @ # # %## #????????????? | | ????????????# ???# ### ! #????????????? | | ?????????????# ??# #?? #????????????? | | ??????????????# *%## #?? a#????????????? | | ??????????????# ! == ### %= #????????????? | | ??????????????## ### ## ] ###??????????? | | ???????????????##????# ## ##?????????? | | ?????????????????????# #?????????? | | ????????????????# ####### ##????????? | | ????????????????# """ ##????# ###??????? | | ????????????? """ #?????# ##?????? | | ????????????### # """ #?????## #?????? | | ????????????????# #??????## ##????? | | ????????????????#######????????## #####? | | ????????????????????????????????## ## | | ?????????????????????????????????## # | | ??????????????????????????????????## #### # | | ???????????????????????????????????# #??## ## | | ???????????????????????????????????# ###?# ##? | | ???????????????????????????????????# ?## #?? | | ??????????????????????????????????? ## ??## #?? | | ?????????????????????????????????? ## ???# #?? | | ?????????????????????????????????? ## ??## ##? | | ????????????????????????????????? ### ??# #? | | ???????????????????????????????? ## ??# ?## #? | +----------------------------------------------------+ Best States ------------- Heat Dissipation 28 Energy Generation 14 Energy Capacity 265 Matter Stores 300 Matter Capacity 300 Sight Range 18 Terrain Scan Density 85 Armor Coverage 150 Resistance: TH 10 Power Shielding 33 Propulsion Shielding 33 Evasion (%) 55 Targeting Accuracy 6 Recoil Reduction 3 Offensive Hacking 10 Item Schematics ----------------- None Robot Schematics ------------------ None Fabricated ------------ Nothing Alien Tech Used ----------------- None Achievements -------------- None Challenges ------------ None Game ------ Seed PointPotentialShockpuncher Manual? 0 Play Time 00:32:41 Cumulative 46.0 hours Start 2022.12.24 @ 12:19:08 End 2022.12.24 @ 12:50:55 Sessions 1 Manual Loads 0 Difficulty Rogue Special Mode None Game No. 57 Rogue 57 Adventurer 0 Explorer 0 Win Type - Total 0 Types 0/0/0/0/0/0/0/0/0 Lore% 29 Gallery% 35 Achievement% 30 Wizard Run 0 Options --------- ASCII 0 Keyboard 0 Movement Mouse Keybinds 0 Fullscreen 2 Font 24/Smallcaps Map View 76x50 Tactical HUD 1 Map Filters NONE Filters NONE Steam 1 RUN: 18d88707-2ee2-4c97-8893-1e9ef977de6a